fUST/lending_fUST_20250628
["ID","MTS","AMOUNT","RATE_DAILY","PERIOD"]
[368278246,1751086244318,-460.0,0.0002,2]
[368278247,1751086244327,-460.0,0.0002,2]
[368278248,1751086244336,-460.0,0.0002,2]
[368278249,1751086244346,-501.38,0.0002,2]
[368278250,1751086244355,-460.0,0.0002,2]
[368278251,1751086244364,-679.94,0.0002,2]
[368278252,1751086244373,-460.0,0.0002,2]
[368278253,1751086244383,-460.0,0.0002,2]
[368278254,1751086244392,-559.41,0.0002,2]
[368278255,1751086244401,-1359.76,0.0002,2]
[368278256,1751086244411,-1789.44,0.0002,2]
[368278257,1751086244420,-460.0,0.0002,2]
[368278258,1751086244430,-460.0,0.0002,2]
[368278259,1751086244439,-460.0,0.0002,2]
[368278260,1751086244448,-460.0,0.0002,2]
[368278261,1751086244457,-954.13,0.0002,2]
[368278262,1751086244466,-1487.89,0.0002,2]
[368278263,1751086244475,-162.54,0.0002,2]
[368278264,1751086244484,-1658.91,0.0002,2]
[368278265,1751086244493,-460.0,0.0002,2]
[368278266,1751086244502,-460.0,0.0002,2]
[368278267,1751086244511,-922.12,0.0002,2]
[368278268,1751086244521,-707.77,0.0002,2]
[368278269,1751086244530,-460.0,0.0002,2]
[368278270,1751086244539,-460.0,0.0002,2]
[368278271,1751086244548,-460.0,0.0002,2]
[368278272,1751086244558,-160.0,0.00020044,2]
[368278273,1751086244567,-160.0,0.00020044,2]
[368278274,1751086244575,-12564.78152626,0.00020044,2]
[368278275,1751086244585,-160.0,0.00020044,2]
[368278276,1751086244594,-160.0,0.00020044,2]
[368278277,1751086244604,-230.28494567,0.00020044,2]
[368278278,1751086244614,-847.18566335,0.00020044,2]
[368278279,1751086244622,-837.06984471,0.00020044,2]
[368278280,1751086244631,-213.78848551,0.00020044,2]
[368278281,1751086244641,-160.0,0.00020044,2]
[368278282,1751086244650,-214.95397287,0.00020044,2]
[368278283,1751086244660,-160.0,0.00020044,2]
[368278284,1751086244669,-160.0,0.00020044,2]
[368278285,1751086244678,-160.0,0.00020044,2]
[368278286,1751086244687,-264.0,0.00020052,2]
[368278287,1751086244697,-500.0,0.0002007,2]
[368278288,1751086244706,-8309.38356543,0.00020141,2]
[368278289,1751086244715,-267.35667,0.00020187,2]
[368278290,1751086244724,-1214.0,0.00020208,2]
[368278291,1751086244733,-420.0,0.00020208,2]
[368278292,1751086244743,-300.0,0.00020256,2]
[368278293,1751086244752,-161.234175,0.00020263,4]
[368278294,1751086244761,-500.0,0.00020272,2]
[368278295,1751086244770,-500.0,0.00020272,2]
[368278296,1751086244779,-500.0,0.00020272,2]
[368278297,1751086244789,-460.0,0.00020273,2]
[368278298,1751086244798,-460.0,0.00020273,2]
[368278299,1751086244807,-519.36,0.00020273,2]
[368278300,1751086244817,-460.0,0.00020273,2]
[368278301,1751086244826,-460.0,0.00020273,2]
[368278302,1751086244836,-642.01,0.00020273,2]
[368278303,1751086244845,-460.0,0.00020273,2]
[368278304,1751086244855,-452.75039927,0.00020273,2]
[368278305,1751086244864,-460.0,0.00020273,2]
[368278306,1751086244874,-460.0,0.00020273,2]
[368278307,1751086244884,-254.44,0.00020273,2]
[368278308,1751086244894,-700.49,0.00020273,2]
[368278309,1751086244903,-460.0,0.00020273,2]
[368278310,1751086244912,-460.0,0.00020273,2]
[368278311,1751086244922,-187.97660492,0.00020273,2]
[368278312,1751086244934,-460.0,0.00020273,2]
[368278313,1751086244944,-460.0,0.00020273,2]
[368278314,1751086244953,-460.0,0.00020273,2]
[368278315,1751086244963,-576.55,0.00020273,2]
[368278316,1751086244972,-2641.4,0.00020273,2]
[368278317,1751086244983,-564.17851885,0.00020273,2]
[368278318,1751086244992,-460.0,0.00020273,2]
[368278319,1751086245002,-2007.05,0.00020273,2]
[368278320,1751086245012,-460.0,0.00020273,2]
[368278321,1751086245022,-460.0,0.00020273,2]
[368278322,1751086245032,-460.0,0.00020273,2]
[368278323,1751086245042,-1932.62,0.00020273,2]
[368278324,1751086245051,-2347.35,0.00020273,2]
[368278325,1751086245061,-460.0,0.00020273,2]
[368278326,1751086245071,-463.09,0.00020273,2]
[368278327,1751086245080,-460.0,0.00020273,2]
[368278328,1751086245089,-460.0,0.00020273,2]
[368278329,1751086245099,-460.0,0.00020273,2]
[368278330,1751086245108,-708.02,0.00020273,2]
[368278331,1751086245118,-460.0,0.00020273,2]
[368278332,1751086245127,-511.65254243,0.00020273,2]
[368278333,1751086245137,-1025.71,0.00020273,2]
[368278334,1751086245147,-460.0,0.00020273,2]
[368278335,1751086245156,-460.0,0.00020273,2]
[368278336,1751086245165,-460.0,0.00020273,2]
[368278337,1751086245175,-460.0,0.00020273,2]
[368278338,1751086245185,-460.0,0.00020273,2]
[368278339,1751086245194,-460.0,0.00020273,2]
[368278340,1751086245203,-460.0,0.00020273,2]
[368278341,1751086245213,-460.0,0.00020273,2]
[368278342,1751086245223,-2465.74,0.00020273,2]
[368278343,1751086245232,-460.0,0.00020273,2]
[368278344,1751086245242,-1611.12,0.00020273,2]
[368278345,1751086245252,-920.64,0.00020273,2]
[368278346,1751086245262,-1992.32,0.00020273,2]
[368278347,1751086245271,-796.91,0.00020273,2]
[368278348,1751086245281,-460.0,0.00020273,2]
[368278349,1751086245291,-460.0,0.00020273,2]
[368278350,1751086245300,-460.0,0.00020273,2]
[368278351,1751086245310,-2784.35,0.00020273,2]
[368278352,1751086245320,-2047.57,0.00020273,2]
[368278353,1751086245329,-460.0,0.00020273,2]
[368278354,1751086245339,-3816.23,0.00020273,2]
[368278355,1751086245348,-460.0,0.00020273,2]
[368278356,1751086245357,-460.0,0.00020273,2]
[368278357,1751086245367,-4008.62,0.00020273,2]
[368278358,1751086245376,-696.39,0.00020273,2]
[368278359,1751086245386,-491.56,0.00020273,2]
[368278360,1751086245395,-857.49,0.00020273,2]
[368278361,1751086245404,-460.0,0.00020273,2]
[368278362,1751086245413,-1215.93,0.00020273,2]
[368278363,1751086245423,-460.0,0.00020273,2]
[368278364,1751086245431,-584.23005202,0.00020273,2]
[368278365,1751086245441,-501.38,0.00020273,2]
[368278366,1751086245451,-460.0,0.00020273,2]
[368278367,1751086245460,-460.0,0.00020273,2]
[368278368,1751086245469,-679.94,0.00020273,2]
[368278369,1751086245479,-460.0,0.00020273,2]
[368278370,1751086245488,-325.7,0.00020273,2]
[368278371,1751086245615,-559.41,0.00020273,2]
[368278372,1751086245625,-1359.76,0.00020273,2]
[368278373,1751086245635,-1789.44,0.00020273,2]
[368278374,1751086245644,-460.0,0.00020273,2]
[368278375,1751086245654,-460.0,0.00020273,2]
[368278376,1751086245663,-460.0,0.00020273,2]
[368278377,1751086245672,-410.54,0.00020273,2]
[368278378,1751086245682,-954.13,0.00020273,2]
[368278379,1751086245691,-1487.89,0.00020273,2]
[368278380,1751086245700,-1658.91,0.00020273,2]
[368278381,1751086245709,-460.0,0.00020273,2]
[368278382,1751086245718,-460.0,0.00020273,2]
[368278383,1751086245727,-922.12,0.00020273,2]
[368278384,1751086245736,-707.77,0.00020273,2]
[368278385,1751086245745,-460.0,0.00020273,2]
[368278386,1751086245755,-460.0,0.00020273,2]
[368278387,1751086245765,-300.0,0.00020297,2]
[368278388,1751086245774,-480.0,0.00020307,2]
[368278389,1751086245783,-178.67757898,0.00020344,2]
[368278390,1751086245792,-1000.0,0.00020344,2]
[368278391,1751086245801,-1000.0,0.00020352,2]
[368278392,1751086245811,-264.0,0.00020368,2]
[368278393,1751086245820,-264.0,0.00020377,2]
[368278394,1751086245829,-264.0,0.00020377,2]
[368278395,1751086245839,-8309.38356543,0.00020383,3]
[368278396,1751086245848,-374.0,0.00020409,2]
[368278397,1751086245858,-374.0,0.00020489,2]
[368278398,1751086245867,-500.0,0.00020546,2]
[368278399,1751086245876,-500.0,0.00020546,2]
[368278401,1751086245886,-172.11808721,0.00020547,2]
[368278402,1751086245895,-460.0,0.00020547,2]
[368278403,1751086245905,-519.36,0.00020547,2]
[368278404,1751086245914,-460.0,0.00020547,2]
[368278405,1751086245924,-460.0,0.00020547,2]
[368278406,1751086245933,-500.0,0.00020547,14]
[368278407,1751086245943,-642.01,0.00020547,2]
[368278408,1751086245952,-460.0,0.00020547,2]
[368278409,1751086245962,-460.0,0.00020547,2]
[368278410,1751086245971,-460.0,0.00020547,2]
[368278411,1751086245981,-700.49,0.00020547,2]
[368278412,1751086245991,-460.0,0.00020547,2]
[368278413,1751086246001,-460.0,0.00020547,2]
[368278414,1751086246011,-460.0,0.00020547,2]
[368278415,1751086246020,-460.0,0.00020547,2]
[368278416,1751086246029,-2641.4,0.00020547,2]
[368278417,1751086246039,-576.55,0.00020547,2]
[368278418,1751086246048,-460.0,0.00020547,2]
[368278419,1751086246058,-2007.05,0.00020547,2]
[368278420,1751086246068,-500.0,0.00020547,2]
[368278421,1751086246077,-460.0,0.00020547,2]
[368278422,1751086246087,-460.0,0.00020547,2]
[368278423,1751086246096,-1932.62,0.00020547,2]
[368278424,1751086246105,-2347.35,0.00020547,2]
[368278425,1751086246115,-463.09,0.00020547,2]
[368278426,1751086246123,-460.0,0.00020547,2]
[368278427,1751086246133,-460.0,0.00020547,2]
[368278428,1751086246143,-460.0,0.00020547,2]
[368278429,1751086246152,-460.0,0.00020547,2]
[368278430,1751086246162,-708.02,0.00020547,2]
[368278431,1751086246171,-460.0,0.00020547,2]
[368278433,1751086246180,-1025.71,0.00020547,2]
[368278435,1751086246189,-460.0,0.00020547,2]
[368278436,1751086246198,-460.0,0.00020547,2]
[368278437,1751086246207,-460.0,0.00020547,2]
[368278438,1751086246217,-460.0,0.00020547,2]
[368278439,1751086246226,-460.0,0.00020547,2]
[368278440,1751086246235,-460.0,0.00020547,2]
[368278441,1751086246244,-460.0,0.00020547,2]
[368278442,1751086246253,-2465.74,0.00020547,2]
[368278443,1751086246262,-1611.12,0.00020547,2]
[368278444,1751086246271,-920.64,0.00020547,2]
[368278445,1751086246281,-1992.32,0.00020547,2]
[368278446,1751086246290,-796.91,0.00020547,2]
[368278447,1751086246299,-460.0,0.00020547,2]
[368278448,1751086246309,-460.0,0.00020547,2]
[368278449,1751086246318,-460.0,0.00020547,2]
[368278450,1751086246327,-2784.35,0.00020547,2]
[368278452,1751086246337,-2047.57,0.00020547,2]
[368278453,1751086246346,-460.0,0.00020547,2]
[368278454,1751086246355,-3816.23,0.00020547,2]
[368278455,1751086246364,-460.0,0.00020547,2]
[368278456,1751086246373,-460.0,0.00020547,2]
[368278457,1751086246382,-4008.62,0.00020547,2]
[368278458,1751086246391,-696.39,0.00020547,2]
[368278459,1751086246401,-491.56,0.00020547,2]
[368278460,1751086246411,-857.49,0.00020547,2]
[368278461,1751086246421,-460.0,0.00020547,2]
[368278462,1751086246431,-1215.93,0.00020547,2]
[368278464,1751086246441,-460.0,0.00020547,2]
[368278465,1751086246450,-501.38,0.00020547,2]
[368278467,1751086246460,-460.0,0.00020547,2]
[368278468,1751086246469,-460.0,0.00020547,2]
[368278469,1751086246479,-679.94,0.00020547,2]
[368278470,1751086246488,-460.0,0.00020547,2]
[368278472,1751086246497,-559.41,0.00020547,2]
[368278473,1751086246507,-1359.76,0.00020547,2]
[368278474,1751086246516,-1789.44,0.00020547,2]
[368278475,1751086246525,-460.0,0.00020547,2]
[368278476,1751086246534,-460.0,0.00020547,2]
[368278477,1751086246543,-228.01781677,0.00020547,2]
[368278478,1751086246553,-954.13,0.00020547,2]
[368278479,1751086246562,-1487.89,0.00020547,2]
[368278480,1751086246571,-460.0,0.00020547,2]
[368278481,1751086246580,-460.0,0.00020547,2]
[368278482,1751086246589,-1658.91,0.00020547,2]
[368278483,1751086246598,-922.12,0.00020547,2]
[368278484,1751086246608,-707.77,0.00020547,2]
[368278485,1751086246617,-460.0,0.00020547,2]
[368278486,1751086246627,-460.0,0.00020547,2]
[368278487,1751086246636,-207.4,0.00020573,2]
[368278488,1751086246646,-5000.0,0.00020573,2]
[368278489,1751086246655,-160.3588391,0.00020573,2]
[368278490,1751086246665,-666.0,0.00020573,2]
[368278491,1751086246674,-503.93739225,0.00020573,2]
[368278492,1751086246684,-500.0,0.00020573,2]
[368278493,1751086246693,-500.0,0.00020573,2]
[368278494,1751086246702,-500.0,0.00020573,2]
[368278495,1751086246712,-2001.05393756,0.00020573,2]
[368278496,1751086246721,-500.0,0.00020573,2]
[368278497,1751086246731,-500.0,0.00020573,2]
[368278498,1751086246740,-500.0,0.00020573,2]
[368278499,1751086246750,-500.0,0.00020573,2]
[368278500,1751086246760,-500.0,0.00020573,2]
[368278501,1751086246769,-500.0,0.00020573,2]
[368278502,1751086246779,-500.0,0.00020573,2]
[368278503,1751086246789,-500.0,0.00020573,2]
[368278504,1751086246799,-500.0,0.00020573,2]
[368278505,1751086246808,-500.0,0.00020573,2]
[368278506,1751086246817,-500.0,0.00020573,2]
[368278507,1751086246827,-500.0,0.00020573,2]
[368278508,1751086246837,-246.59496078,0.00020573,2]
[368278509,1751086246847,-500.0,0.00020573,2]
[368278510,1751086246856,-500.0,0.00020573,2]
[368278511,1751086246866,-500.0,0.00020573,2]
[368278512,1751086246876,-25000.0,0.00020573,2]
[368278513,1751086246885,-9311.42036975,0.00020573,2]
[368278514,1751086246895,-500.0,0.00020599,2]
[368278515,1751086246904,-612.94383629,0.00020599,2]
[368278516,1751086246913,-3797.86,0.000206,2]
[368278517,1751086246923,-213.78848551,0.00020624,3]
[368278518,1751086246934,-160.0,0.00020624,3]
[368278519,1751086246944,-8309.38356543,0.00020624,3]
[368278520,1751086246954,-12564.78152626,0.00020624,3]
[368278521,1751086246964,-847.18566335,0.00020624,3]
[368278522,1751086246974,-690.642,0.00020628,2]
[368278523,1751086246985,-716.195754,0.00020683,2]
[368278524,1751086246995,-304.0,0.00020725,3]
[368278525,1751086247005,-742.6949969,0.00020738,2]
[368278526,1751086247015,-770.17471178,0.00020793,2]
[368278527,1751086247026,-364.64,0.00020812,3]
[368278528,1751086247035,-480.66541348,0.00020821,2]
[368278529,1751086247045,-519.36,0.00020821,2]
[368278530,1751086247054,-460.0,0.00020821,2]
[368278531,1751086247063,-460.0,0.00020821,2]
[368278532,1751086247073,-642.01,0.00020821,2]
[368278533,1751086247082,-460.0,0.00020821,2]
[368278534,1751086247091,-460.0,0.00020821,2]
[368278535,1751086247102,-700.49,0.00020821,2]
[368278536,1751086247112,-460.0,0.00020821,2]
[368278537,1751086247122,-460.0,0.00020821,2]
[368278538,1751086247132,-460.0,0.00020821,2]
[368278539,1751086247141,-2641.4,0.00020821,2]
[368278540,1751086247150,-576.55,0.00020821,2]
[368278541,1751086247159,-460.0,0.00020821,2]
[368278542,1751086247168,-2007.05,0.00020821,2]
[368278543,1751086247178,-460.0,0.00020821,2]
[368278544,1751086247187,-1932.62,0.00020821,2]
[368278545,1751086247196,-2347.35,0.00020821,2]
[368278546,1751086247206,-463.09,0.00020821,2]
[368278547,1751086247215,-460.0,0.00020821,2]
[368278548,1751086247225,-460.0,0.00020821,2]
[368278549,1751086247234,-460.0,0.00020821,2]
[368278550,1751086247243,-708.02,0.00020821,2]
[368278551,1751086247253,-460.0,0.00020821,2]
[368278552,1751086247262,-1025.71,0.00020821,2]
[368278553,1751086247272,-460.0,0.00020821,2]
[368278554,1751086247281,-460.0,0.00020821,2]
[368278555,1751086247291,-460.0,0.00020821,2]
[368278556,1751086247301,-460.0,0.00020821,2]
[368278557,1751086247310,-460.0,0.00020821,2]
[368278558,1751086247319,-460.0,0.00020821,2]
[368278559,1751086247328,-2465.74,0.00020821,2]
[368278560,1751086247338,-1611.12,0.00020821,2]
[368278561,1751086247348,-920.64,0.00020821,2]
[368278562,1751086247357,-1992.32,0.00020821,2]
[368278563,1751086247367,-796.91,0.00020821,2]
[368278564,1751086247377,-460.0,0.00020821,2]
[368278565,1751086247386,-460.0,0.00020821,2]
[368278566,1751086247396,-2784.35,0.00020821,2]
[368278567,1751086247406,-2047.57,0.00020821,2]
[368278568,1751086247415,-460.0,0.00020821,2]
[368278569,1751086247425,-3816.23,0.00020821,2]
[368278570,1751086247434,-460.0,0.00020821,2]
[368278571,1751086247444,-460.0,0.00020821,2]
[368278572,1751086247453,-4008.62,0.00020821,2]
[368278573,1751086247462,-696.39,0.00020821,2]
[368278574,1751086247472,-491.56,0.00020821,2]
[368278575,1751086247481,-857.49,0.00020821,2]
[368278576,1751086247491,-332.51731225,0.00020821,2]
[368278577,1751086247500,-1215.93,0.00020821,2]
[368278578,1751086247509,-501.38,0.00020821,2]
[368278579,1751086247519,-460.0,0.00020821,2]
[368278580,1751086247528,-460.0,0.00020821,2]
[368278581,1751086247537,-679.94,0.00020821,2]
[368278582,1751086247546,-474.82475095,0.00020821,2]
[368278583,1751086247555,-559.41,0.00020821,2]
[368278584,1751086247564,-1359.76,0.00020821,2]
[368278585,1751086247574,-1789.44,0.00020821,2]
[368278586,1751086247583,-460.0,0.00020821,2]
[368278587,1751086247592,-460.0,0.00020821,2]
[368278588,1751086247601,-954.13,0.00020821,2]
[368278589,1751086247610,-1487.89,0.00020821,2]
[368278590,1751086247618,-460.0,0.00020821,2]
[368278591,1751086247627,-460.0,0.00020821,2]
[368278592,1751086247637,-1658.91,0.00020821,2]
[368278593,1751086247645,-922.12,0.00020821,2]
[368278594,1751086247655,-707.77,0.00020821,2]
[368278595,1751086247664,-460.0,0.00020821,2]
[368278596,1751086247673,-460.0,0.00020821,2]
[368278597,1751086247682,-798.67117612,0.00020848,2]
[368278598,1751086247692,-8309.38356543,0.00020866,4]
[368278599,1751086247701,-1500.0,0.00020892,2]
[368278600,1751086247711,-1000.0,0.00020899,2]
[368278601,1751086247720,-828.22200964,0.00020903,2]
[368278602,1751086247729,-858.86622399,0.00020958,2]
[368278603,1751086247739,-500.0,0.00020958,15]
[368278604,1751086247748,-304.0,0.00020968,3]
[368278605,1751086247758,-18803.49168301,0.00021,2]
[368278606,1751086247767,-890.64427428,0.00021013,2]
[368278607,1751086247777,-923.59811243,0.00021068,2]
[368278608,1751086247786,-500.0,0.00021094,2]
[368278609,1751086247795,-568.19337244,0.00021094,2]
[368278610,1751086247804,-500.0,0.00021094,2]
[368278611,1751086247814,-500.0,0.00021094,2]
[368278612,1751086247824,-519.36,0.00021095,2]
[368278613,1751086247833,-460.0,0.00021095,2]
[368278614,1751086247842,-642.01,0.00021095,2]
[368278615,1751086247852,-460.0,0.00021095,2]
[368278616,1751086247861,-460.0,0.00021095,2]
[368278617,1751086247870,-700.49,0.00021095,2]
[368278618,1751086247880,-460.0,0.00021095,2]
[368278619,1751086247889,-460.0,0.00021095,2]
[368278620,1751086247899,-460.0,0.00021095,2]
[368278621,1751086247908,-2641.4,0.00021095,2]
[368278622,1751086247918,-576.55,0.00021095,2]
[368278623,1751086247927,-460.0,0.00021095,2]
[368278624,1751086247940,-2007.05,0.00021095,2]
[368278625,1751086247950,-370.20535212,0.00021095,2]
[368278626,1751086247960,-1932.62,0.00021095,2]
[368278627,1751086247970,-2347.35,0.00021095,2]
[368278628,1751086247979,-463.09,0.00021095,2]
[368278629,1751086247989,-460.0,0.00021095,2]
[368278630,1751086247999,-460.0,0.00021095,2]
[368278631,1751086248008,-460.0,0.00021095,2]
[368278632,1751086248017,-708.02,0.00021095,2]
[368278633,1751086248027,-460.0,0.00021095,2]
[368278634,1751086248037,-1025.71,0.00021095,2]
[368278635,1751086248047,-460.0,0.00021095,2]
[368278636,1751086248056,-460.0,0.00021095,2]
[368278637,1751086248066,-460.0,0.00021095,2]
[368278638,1751086248075,-460.0,0.00021095,2]
[368278639,1751086248085,-460.0,0.00021095,2]
[368278640,1751086248094,-460.0,0.00021095,2]
[368278641,1751086248103,-2465.74,0.00021095,2]
[368278642,1751086248113,-920.64,0.00021095,2]
[368278643,1751086248122,-1611.12,0.00021095,2]
[368278644,1751086248131,-1992.32,0.00021095,2]
[368278645,1751086248141,-796.91,0.00021095,2]
[368278646,1751086248151,-460.0,0.00021095,2]
[368278647,1751086248160,-460.0,0.00021095,2]
[368278648,1751086248170,-2784.35,0.00021095,2]
[368278649,1751086248179,-2047.57,0.00021095,2]
[368278650,1751086248189,-460.0,0.00021095,2]
[368278651,1751086248199,-3816.23,0.00021095,2]
[368278652,1751086248208,-460.0,0.00021095,2]
[368278653,1751086248217,-460.0,0.00021095,2]
[368278654,1751086248227,-4008.62,0.00021095,2]
[368278655,1751086248236,-696.39,0.00021095,2]
[368278656,1751086248246,-491.56,0.00021095,2]
[368278657,1751086248255,-857.49,0.00021095,2]
[368278658,1751086248264,-1215.93,0.00021095,2]
[368278659,1751086248273,-501.38,0.00021095,2]
[368278660,1751086248283,-460.0,0.00021095,2]
[368278661,1751086248291,-460.0,0.00021095,2]
[368278662,1751086248301,-679.94,0.00021095,2]
[368278663,1751086248310,-559.41,0.00021095,2]
[368278664,1751086248319,-1359.76,0.00021095,2]
[368278665,1751086248329,-1789.44,0.00021095,2]
[368278666,1751086248338,-460.0,0.00021095,2]
[368278667,1751086248347,-460.0,0.00021095,2]
[368278668,1751086248356,-954.13,0.00021095,2]
[368278669,1751086248366,-1487.89,0.00021095,2]
[368278670,1751086248375,-460.0,0.00021095,2]
[368278671,1751086248384,-460.0,0.00021095,2]
[368278672,1751086248393,-1658.91,0.00021095,2]
[368278673,1751086248402,-922.12,0.00021095,2]
[368278674,1751086248412,-707.77,0.00021095,2]
[368278675,1751086248421,-460.0,0.00021095,2]
[368278676,1751086248431,-460.0,0.00021095,2]
[368278677,1751086248440,-8309.38356543,0.00021107,4]
[368278678,1751086248449,-5000.0,0.00021121,2]
[368278679,1751086248458,-510.92419968,0.00021123,2]
[368278680,1751086248582,-374.0,0.00021193,2]
[368278681,1751086248592,-151.0,0.000212,4]
[368278682,1751086248602,-304.0,0.00021211,4]
[368278683,1751086248611,-374.0,0.00021261,2]
[368278684,1751086248621,-8309.38356543,0.00021348,5]
[368278685,1751086248631,-519.36,0.00021369,2]
[368278686,1751086248641,-460.0,0.00021369,2]
[368278687,1751086248650,-500.0,0.00021369,16]
[368278688,1751086248660,-642.01,0.00021369,2]
[368278689,1751086248669,-460.0,0.00021369,2]
[368278690,1751086248679,-460.0,0.00021369,2]
[368278691,1751086248688,-700.49,0.00021369,2]
[368278692,1751086248698,-460.0,0.00021369,2]
[368278693,1751086248706,-460.0,0.00021369,2]
[368278694,1751086248716,-460.0,0.00021369,2]
[368278695,1751086248726,-2641.4,0.00021369,2]
[368278696,1751086248735,-576.55,0.00021369,2]
[368278697,1751086248744,-460.0,0.00021369,2]
[368278698,1751086248754,-2007.05,0.00021369,2]
[368278699,1751086248763,-1932.62,0.00021369,2]
[368278700,1751086248772,-2347.35,0.00021369,2]
[368278701,1751086248781,-463.09,0.00021369,2]
[368278702,1751086248791,-460.0,0.00021369,2]
[368278703,1751086248800,-460.0,0.00021369,2]
[368278704,1751086248810,-460.0,0.00021369,2]
[368278705,1751086248819,-708.02,0.00021369,2]
[368278706,1751086248829,-460.0,0.00021369,2]
[368278707,1751086248838,-1025.71,0.00021369,2]
[368278708,1751086248847,-460.0,0.00021369,2]
[368278709,1751086248857,-460.0,0.00021369,2]
[368278710,1751086248866,-460.0,0.00021369,2]
[368278711,1751086248876,-460.0,0.00021369,2]
[368278712,1751086248886,-460.0,0.00021369,2]
[368278713,1751086248895,-460.0,0.00021369,2]
[368278714,1751086248905,-2465.74,0.00021369,2]
[368278715,1751086248915,-920.64,0.00021369,2]
[368278716,1751086248924,-1611.12,0.00021369,2]
[368278717,1751086248936,-1992.32,0.00021369,2]
[368278718,1751086248945,-796.91,0.00021369,2]
[368278719,1751086248955,-285.03360379,0.00021369,2]
[368278720,1751086248964,-460.0,0.00021369,2]
[368278721,1751086248975,-2784.35,0.00021369,2]
[368278722,1751086248984,-2047.57,0.00021369,2]
[368278723,1751086248993,-460.0,0.00021369,2]
[368278724,1751086249003,-3816.23,0.00021369,2]
[368278725,1751086249013,-460.0,0.00021369,2]
[368278726,1751086249023,-460.0,0.00021369,2]
[368278727,1751086249032,-4008.62,0.00021369,2]
[368278728,1751086249042,-696.39,0.00021369,2]
[368278729,1751086249052,-491.56,0.00021369,2]
[368278730,1751086249061,-857.49,0.00021369,2]
[368278731,1751086249071,-1215.93,0.00021369,2]
[368278732,1751086249080,-501.38,0.00021369,2]
[368278733,1751086249090,-460.0,0.00021369,2]
[368278734,1751086249099,-460.0,0.00021369,2]
[368278735,1751086249108,-679.94,0.00021369,2]
[368278736,1751086249121,-559.41,0.00021369,2]
[368278737,1751086249133,-1359.76,0.00021369,2]
[368278738,1751086249143,-1789.44,0.00021369,2]
[368278739,1751086249152,-460.0,0.00021369,2]
[368278740,1751086249161,-460.0,0.00021369,2]
[368278741,1751086249171,-954.13,0.00021369,2]
[368278742,1751086249180,-1487.89,0.00021369,2]
[368278743,1751086249189,-460.0,0.00021369,2]
[368278744,1751086249198,-460.0,0.00021369,2]
[368278745,1751086249208,-1658.91,0.00021369,2]
[368278746,1751086249218,-922.12,0.00021369,2]
[368278747,1751086249228,-707.77,0.00021369,2]
[368278748,1751086249237,-460.0,0.00021369,2]
[368278749,1751086249247,-460.0,0.00021369,2]
[368278750,1751086249256,-151.0,0.000214,3]
[368278751,1751086249265,-505.48,0.00021409,2]
[368278752,1751086249275,-500.0,0.0002144,2]